fUSD/lending_fUSD_20240527
["ID","MTS","AMOUNT","RATE_DAILY","PERIOD"]
[328092099,1716844255949,-500.0,0.00030136,6]
[328092100,1716844255960,-2138.51,0.00030136,6]
[328092101,1716844255971,-743.73,0.00030136,6]
[328092102,1716844255982,-500.0,0.00030136,6]
[328092103,1716844255993,-2138.51,0.00030136,6]
[328092104,1716844256004,-743.73,0.00030136,6]
[328092105,1716844256015,-500.0,0.00030136,6]
[328092106,1716844256027,-2138.51,0.00030136,6]
[328092107,1716844256038,-743.73,0.00030136,6]
[328092108,1716844256049,-500.0,0.00030136,6]
[328092109,1716844256060,-743.73,0.00030136,6]
[328092110,1716844256072,-2138.51,0.00030136,6]
[328092111,1716844256083,-500.0,0.00030136,6]
[328092112,1716844256094,-500.0,0.00030136,6]
[328092113,1716844256105,-743.73,0.00030136,6]
[328092114,1716844256116,-2138.51,0.00030136,6]
[328092115,1716844256128,-500.0,0.00030136,6]
[328092116,1716844256139,-2138.51,0.00030136,6]
[328092117,1716844256150,-743.73,0.00030136,6]
[328092118,1716844256161,-500.0,0.00030136,6]
[328092119,1716844256172,-743.73,0.00030136,6]
[328092120,1716844256184,-500.0,0.00030136,6]
[328092121,1716844256195,-743.73,0.00030136,6]
[328092122,1716844256206,-2138.51,0.00030136,6]
[328092123,1716844256217,-743.93,0.00030136,6]
[328092124,1716844256228,-1622.82,0.00030136,6]
[328092125,1716844256240,-500.0,0.00030136,6]
[328092126,1716844256251,-500.0,0.00030136,6]
[328092127,1716844256262,-1622.82,0.00030136,6]
[328092128,1716844256274,-500.0,0.00030136,6]
[328092129,1716844256286,-1622.82,0.00030136,6]
[328092130,1716844256297,-500.0,0.00030136,6]
[328092131,1716844256308,-1622.82,0.00030136,6]
[328092132,1716844256319,-500.0,0.00030136,6]
[328092133,1716844256330,-1622.82,0.00030136,6]
[328092134,1716844256341,-500.0,0.00030136,6]
[328092135,1716844256352,-1622.82,0.00030136,6]
[328092136,1716844256363,-500.0,0.00030136,6]
[328092137,1716844256374,-1622.82,0.00030136,6]
[328092138,1716844256386,-500.0,0.00030136,6]
[328092139,1716844256397,-500.0,0.00030136,6]
[328092140,1716844256408,-500.0,0.00030136,6]
[328092141,1716844256419,-500.0,0.00030136,6]
[328092142,1716844256430,-1622.82,0.00030136,6]
[328092143,1716844256441,-1622.82,0.00030136,6]
[328092144,1716844256453,-1622.82,0.00030136,6]
[328092145,1716844256464,-1622.82,0.00030136,6]
[328092146,1716844256475,-1622.82,0.00030136,6]
[328092147,1716844256485,-1622.82,0.00030136,6]
[328092148,1716844256496,-1622.82,0.00030136,6]
[328092149,1716844256507,-1622.82,0.00030136,6]
[328092150,1716844256518,-500.0,0.00030136,6]
[328092151,1716844256529,-151.0,0.00030136,7]
[328092152,1716844256540,-151.0,0.00030136,7]
[328092153,1716844256551,-151.0,0.00030136,7]
[328092154,1716844256562,-1560.69005,0.00030136,2]
[328092155,1716844256573,-151.0,0.00030136,7]
[328092156,1716844256584,-151.0,0.00030136,7]
[328092157,1716844256594,-151.0,0.00030136,7]
[328092158,1716844256605,-500.0,0.00030136,6]
[328092159,1716844256615,-500.0,0.00030136,6]
[328092160,1716844256624,-500.0,0.00030136,6]
[328092161,1716844256634,-500.0,0.00030136,6]
[328092162,1716844256643,-500.0,0.00030136,6]
[328092163,1716844256653,-500.0,0.00030136,6]
[328092164,1716844256661,-500.0,0.00030136,6]
[328092165,1716844256671,-500.0,0.00030136,6]
[328092166,1716844256681,-500.0,0.00030136,6]
[328092167,1716844256695,-151.0,0.00030136,7]
[328092168,1716844256705,-500.0,0.00030136,6]
[328092169,1716844256714,-500.0,0.00030136,6]
[328092170,1716844256724,-229.20326289,0.00030136,6]
[328092171,1716844256734,-151.0,0.00030136,7]
[328092172,1716844256743,-500.0,0.00030136,6]
[328092173,1716844256752,-500.0,0.00030136,6]
[328092174,1716844256762,-500.0,0.00030136,6]
[328092175,1716844257032,-549.4,0.00030136,6]
[328092176,1716844257055,-500.0,0.00030136,6]
[328092177,1716844257070,-500.0,0.00030136,6]
[328092178,1716844257080,-500.0,0.00030136,6]
[328092179,1716844257089,-500.0,0.00030136,6]
[328092180,1716844257098,-500.0,0.00030136,6]
[328092181,1716844257108,-500.0,0.00030136,6]
[328092182,1716844257117,-500.0,0.00030136,6]
[328092183,1716844257126,-500.0,0.00030136,6]
[328092184,1716844257136,-500.0,0.00030136,6]
[328092185,1716844257145,-500.0,0.00030136,6]
[328092186,1716844257154,-500.0,0.00030136,6]
[328092187,1716844257163,-500.0,0.00030136,6]
[328092188,1716844257173,-500.0,0.00030136,6]
[328092189,1716844257182,-500.0,0.00030136,6]
[328092190,1716844257191,-500.0,0.00030136,6]
[328092191,1716844257200,-500.0,0.00030136,6]
[328092192,1716844257209,-500.0,0.00030136,6]
[328092193,1716844257218,-500.0,0.00030136,6]
[328092194,1716844257227,-500.0,0.00030136,6]
[328092195,1716844257237,-500.0,0.00030136,6]
[328092196,1716844257247,-500.0,0.00030136,6]
[328092197,1716844257256,-500.0,0.00030136,6]
[328092198,1716844257265,-500.0,0.00030136,6]
[328092199,1716844257274,-500.0,0.00030136,6]
[328092200,1716844257283,-500.0,0.00030136,6]
[328092201,1716844257292,-500.0,0.00030136,6]
[328092202,1716844257301,-500.0,0.00030136,6]
[328092203,1716844257310,-500.0,0.00030136,6]
[328092204,1716844257319,-865.22,0.00030136,6]
[328092205,1716844257328,-500.0,0.00030136,6]
[328092206,1716844257337,-500.0,0.00030136,6]
[328092207,1716844257346,-500.0,0.00030136,6]
[328092208,1716844257355,-865.22,0.00030136,6]
[328092209,1716844257363,-500.0,0.00030136,6]
[328092210,1716844257372,-865.22,0.00030136,6]
[328092211,1716844257384,-500.0,0.00030136,6]
[328092212,1716844257397,-305.41,0.00030136,6]
[328092213,1716844257406,-865.22,0.00030136,6]
[328092214,1716844257415,-573.56745566,0.00030136,6]
[328092215,1716844257424,-865.22,0.00030136,6]
[328092216,1716844257433,-865.22,0.00030136,6]
[328092217,1716844257442,-865.22,0.00030136,6]
[328092218,1716844257451,-865.22,0.00030136,6]
[328092219,1716844257460,-865.22,0.00030136,6]
[328092220,1716844257470,-865.22,0.00030136,6]
[328092221,1716844257479,-835.4,0.00030136,6]
[328092222,1716844257488,-865.22,0.00030136,6]
[328092223,1716844257497,-835.4,0.00030136,6]
[328092224,1716844257506,-835.4,0.00030136,6]
[328092225,1716844257516,-500.0,0.00030136,6]
[328092226,1716844257525,-835.4,0.00030136,6]
[328092227,1716844257535,-500.0,0.00030136,6]
[328092228,1716844257544,-500.0,0.00030136,6]
[328092229,1716844257553,-500.0,0.00030136,6]
[328092230,1716844257562,-500.0,0.00030136,6]
[328092231,1716844257571,-500.0,0.00030136,6]
[328092232,1716844257581,-835.4,0.00030136,6]
[328092233,1716844257590,-835.4,0.00030136,6]
[328092234,1716844257599,-500.0,0.00030136,6]
[328092235,1716844257608,-835.4,0.00030136,6]
[328092236,1716844257617,-835.4,0.00030136,6]
[328092237,1716844257626,-835.4,0.00030136,6]
[328092238,1716844257636,-835.4,0.00030136,6]
[328092239,1716844257648,-835.4,0.00030136,6]
[328092240,1716844257656,-835.4,0.00030136,6]
[328092241,1716844257666,-500.0,0.00030136,6]
[328092242,1716844257675,-835.4,0.00030136,6]
[328092243,1716844257685,-835.4,0.00030136,6]
[328092244,1716844257698,-500.0,0.00030136,6]
[328092245,1716844257707,-835.4,0.00030136,6]
[328092246,1716844257716,-500.0,0.00030136,6]
[328092247,1716844257725,-835.4,0.00030136,6]
[328092248,1716844257735,-500.0,0.00030136,6]
[328092249,1716844257745,-835.4,0.00030136,6]
[328092250,1716844257754,-500.0,0.00030136,6]
[328092251,1716844257766,-835.4,0.00030136,6]
[328092252,1716844257775,-500.0,0.00030136,6]
[328092253,1716844257785,-5578.12,0.00030136,6]
[328092254,1716844257794,-835.4,0.00030136,6]
[328092255,1716844257803,-479.65604371,0.00030136,6]
[328092256,1716844257813,-5578.12,0.00030136,6]
[328092257,1716844257822,-835.4,0.00030136,6]
[328092258,1716844257831,-3724.8725905,0.00030136,6]
[328092259,1716844258306,-1853.2474095,0.00030136,6]
[328092260,1716844258319,-835.4,0.00030136,6]
[328092261,1716844258328,-4750.60036163,0.00030136,6]
[328092262,1716844258340,-827.51963837,0.00030136,6]
[328092263,1716844258349,-835.4,0.00030136,6]
[328092264,1716844258358,-5578.12,0.00030136,6]
[328092265,1716844258367,-835.4,0.00030136,6]
[328092266,1716844258377,-5578.12,0.00030136,6]
[328092267,1716844258390,-835.55816746,0.00030136,6]
[328092268,1716844258399,-500.0,0.00030136,6]
[328092269,1716844258409,-5578.12,0.00030136,6]
[328092270,1716844258419,-500.0,0.00030136,6]
[328092271,1716844258428,-5578.12,0.00030136,6]
[328092272,1716844258438,-500.0,0.00030136,6]
[328092273,1716844258447,-500.0,0.00030136,6]
[328092274,1716844258457,-3088.2075352,0.00030136,6]
[328092275,1716844258472,-2489.9124648,0.00030136,6]
[328092276,1716844258481,-500.0,0.00030136,6]
[328092277,1716844258491,-500.0,0.00030136,6]
[328092278,1716844258500,-3144.53753521,0.00030136,6]
[328092284,1716844539776,177.76,0.00026162,120]
[328092285,1716845058795,-1000.0,0.00030137,15]
[328092286,1716845058822,-157.052805,0.00030148,36]
[328092287,1716845058847,-157.052805,0.00030198,34]
[328092288,1716845058872,-157.052805,0.00030248,36]
[328092289,1716845058896,-157.052805,0.00030298,34]
[328092290,1716845058925,-157.052805,0.00030348,36]
[328092291,1716845058948,-157.0,0.0003038,19]
[328092292,1716845058978,-157.052805,0.00030398,34]
[328092293,1716845059019,-157.052805,0.00030448,36]
[328092294,1716845059042,-200.0,0.00030463,120]
[328092295,1716845059066,-157.052805,0.00030498,34]
[328092296,1716845059090,-157.052805,0.00030548,36]
[328092297,1716845059116,-157.052805,0.00030598,34]
[328092298,1716845059142,-157.052805,0.00030648,36]
[328092299,1716845059167,-157.052805,0.00030698,34]
[328092300,1716845059201,-157.052805,0.00030748,36]
[328092301,1716845059233,-157.052805,0.00030798,34]
[328092302,1716845059260,-157.052805,0.00030848,36]
[328092303,1716845059286,-157.052805,0.00030898,34]
[328092304,1716845059308,-200.0,0.00030931,120]
[328092305,1716845059333,-157.052805,0.00030948,36]
[328092306,1716845059356,-157.052805,0.00030998,34]
[328092307,1716845059398,-157.052805,0.00031048,40]
[328092308,1716845059420,-200.0,0.00031063,120]
[328092309,1716845059445,-157.052805,0.00031098,36]
[328092310,1716845059471,-157.052805,0.00031148,40]
[328092311,1716845059496,-157.052805,0.00031198,36]
[328092312,1716845059520,-157.052805,0.00031248,40]
[328092313,1716845059544,-157.052805,0.00031298,36]
[328092314,1716845059568,-157.052805,0.00031348,40]
[328092315,1716845059593,-157.052805,0.00031398,36]
[328092316,1716845059619,-157.052805,0.00031448,40]
[328092317,1716845059645,-157.052805,0.00031498,36]
[328092318,1716845059677,-980.0,0.000315,16]
[328092319,1716845059702,-200.0,0.00031531,120]
[328092320,1716845059726,-1000.0,0.00031531,120]
[328092321,1716845059750,-157.052805,0.00031548,40]
[328092322,1716845059775,-157.052805,0.00031598,36]
[328092323,1716845059800,-157.052805,0.00031648,40]
[328092324,1716845059825,-157.052805,0.00031698,36]
[328092325,1716845059849,-157.052805,0.00031748,40]
[328092326,1716845059873,-157.052805,0.00031798,36]
[328092327,1716845059898,-157.052805,0.00031848,40]
[328092328,1716845059923,-157.052805,0.00031898,36]
[328092329,1716845059946,-150.0,0.0003194,120]
[328092330,1716845059974,-157.052805,0.00031948,40]
[328092331,1716845060002,-157.052805,0.00031998,36]
[328092332,1716845060028,-157.052805,0.00032048,42]
[328092333,1716845060059,-157.052805,0.00032098,40]
[328092334,1716845060083,-157.052805,0.00032148,42]
[328092335,1716845060107,-157.052805,0.00032198,40]
[328092336,1716845060324,-2663.07,0.00032232,30]
[328092337,1716845060346,-3651.37,0.00032232,30]
[328092338,1716845060368,-200.0,0.00032236,120]
[328092339,1716845060392,-157.052805,0.00032248,42]
[328092340,1716845060417,-157.052805,0.00032298,40]
[328092341,1716845060442,-157.052805,0.00032348,42]
[328092342,1716845060467,-157.052805,0.00032398,40]
[328092343,1716845060491,-157.052805,0.00032448,42]
[328092344,1716845060517,-157.052805,0.00032498,40]
[328092345,1716845060542,-157.052805,0.00032548,42]
[328092346,1716845060567,-157.052805,0.00032598,40]
[328092347,1716845060592,-157.052805,0.00032648,42]
[328092348,1716845060617,-157.052805,0.00032698,40]
[328092349,1716845060641,-157.052805,0.00032748,42]
[328092350,1716845060664,-200.0,0.00032794,120]
[328092351,1716845060690,-157.052805,0.00032798,40]
[328092352,1716845060714,-974.0,0.000328,17]
[328092353,1716845060739,-157.052805,0.00032848,42]
[328092354,1716845060764,-205.790097,0.00032875,120]
[328092355,1716845060791,-157.052805,0.00032898,40]
[328092356,1716845060814,-13214.88260084,0.000329,30]
[328092357,1716845060838,-160297.16064083,0.000329,30]
[328092358,1716845060867,-157.052805,0.00032948,42]
[328092359,1716845060894,-157.052805,0.00032998,40]
[328092360,1716845060918,-615.71659538,0.00033,30]
[328092361,1716845060945,-157.052805,0.00033048,44]
[328092362,1716845060976,-157.052805,0.00033098,42]
[328092363,1716845061002,-157.052805,0.00033198,42]
[328092364,1716845061032,-150.0,0.000332,22]
[328092365,1716845061059,-157.052805,0.00033298,42]
[328092366,1716845061086,-290.64768294,0.00033356,30]
[328092367,1716845061122,-171.790973,0.00033375,120]
[328092368,1716845061150,-157.052805,0.00033398,42]
[328092369,1716845061174,-487.0,0.000334,18]
[328092370,1716845061201,-197.0,0.000334,18]
[328092371,1716845061230,-157.052805,0.00033498,42]
[328092372,1716845061259,-157.052805,0.00033598,42]
[328092373,1716845061286,-157.052805,0.00033698,42]
[328092374,1716845061311,-150.0,0.000337,22]
[328092375,1716845061341,-157.052805,0.00033798,42]
[328092376,1716845061369,-157.052805,0.00033898,42]
[328092377,1716845061395,-157.052805,0.00033998,42]
[328092378,1716845061419,-405.985,0.00034,120]
[328092379,1716845061442,-150.0,0.00034,30]
[328092380,1716845061464,-409.76783187,0.00034,120]
[328092381,1716845061494,-157.052805,0.00034098,44]
[328092382,1716845061519,-150.0,0.00034157,120]
[328092383,1716845061547,-157.052805,0.00034198,44]
[328092384,1716845061571,-150.0,0.000342,23]
[328092385,1716845061599,-157.052805,0.00034298,44]
[328092386,1716845061622,-1000.0,0.00034375,120]
[328092387,1716845061648,-157.052805,0.00034398,44]
[328092388,1716845061677,-157.052805,0.00034498,44]
[328092389,1716845061702,-300.0,0.00034559,120]
[328092390,1716845061727,-150.0,0.000347,23]
[328092391,1716845061751,-10766.16734262,0.00034874,31]
[328092392,1716845061773,-805.08156842,0.00034889,20]
[328092393,1716845061796,-5000.0,0.000349,30]
[328092394,1716845061819,-204227.36134585,0.000349,30]
[328092395,1716845061843,-5402.8447675,0.0003499,120]
[328092396,1716845061866,-1000.0,0.00034998,31]
[328092397,1716845061893,-50000.0,0.00035,15]
[328092398,1716845061916,-670.0,0.00035,120]
[328092399,1716845061940,-288.49562483,0.00035,30]
[328092400,1716845061965,-501.59021085,0.00035,30]
[328092401,1716845061992,-1000.0,0.00035,120]
[328092402,1716845062016,-1001.33,0.00035,120]
[328092403,1716845062042,-42352.50137509,0.00035,30]
[328092404,1716845062067,-500.0,0.00035,30]
[328092405,1716845062091,-300.0,0.00035014,120]
[328092406,1716845062115,-250.0,0.00035197,20]
[328092407,1716845062138,-150.0,0.000352,24]
[328092408,1716845062162,-171.01,0.00035288,30]
[328092409,1716845062187,-487.0,0.000354,20]
[328092410,1716845062211,-189.0,0.000354,20]
[328092411,1716845062233,-2000.0,0.000354,15]
[328092412,1716845062256,-1099.99999901,0.00035428,30]
[328092413,1716845062279,-300.0,0.00035468,120]
[328092414,1716845062302,-2000.0,0.00035479,30]
[328092415,1716845062325,-621307.63912681,0.0003549,30]
[328092416,1716845062347,-3112.51293168,0.00035499,120]
[328092417,1716845062370,-1027.0,0.000355,30]
[328092418,1716845062395,-154.43113734,0.000355,30]
[328092419,1716845062420,-150.0,0.000357,24]
[328092420,1716845062442,-1000.0,0.00035875,120]
[328092421,1716845062464,-300.0,0.00035923,120]
[328092422,1716845062490,-50000.0,0.00036,16]
[328092423,1716845062512,-950.0,0.00036,120]
[328092424,1716845062534,-150.0,0.000362,25]
[328092425,1716845062556,-150.0,0.00036268,120]
[328092426,1716845062578,-648.01,0.00036291,120]
[328092427,1716845062601,-300.0,0.00036378,120]
[328092428,1716845062624,-2083.0,0.000364,17]
[328092429,1716845062646,-450.0,0.00036673,30]
[328092430,1716845062668,-150.0,0.000367,26]
[328092431,1716845062691,-300.0,0.00036832,120]
[328092432,1716845062716,-50000.0,0.00037,17]
[328092433,1716845062738,-150.0,0.00037,20]
[328092434,1716845062762,-559.86914523,0.00037,120]
[328092435,1716845062784,-3327.66712136,0.00037002,40]
[328092436,1716845062949,-2861.2865688,0.00037002,40]
[328092437,1716845062978,-1185.53833292,0.00037002,40]
[328092438,1716845063001,-150.0,0.000372,26]
[328092439,1716845063024,-300.0,0.00037287,120]
[328092440,1716845063049,-1034.07085,0.00037375,120]
[328092441,1716845063071,-150.0,0.000377,27]
[328092442,1716845063093,-300.0,0.00037742,120]
[328092443,1716845063120,-50000.0,0.00038,18]
[328092444,1716845063143,-700.0,0.00038,120]
[328092445,1716845063165,-150.0,0.00038,20]
[328092446,1716845063188,-393.0,0.00038,30]
[328092447,1716845063210,-161.91198059,0.00038,30]
[328092448,1716845063233,-218.45,0.00038071,120]
[328092449,1716845063255,-300.0,0.00038197,120]
[328092450,1716845063275,-150.0,0.000382,27]
[328092451,1716845063292,-450.0,0.00038327,30]
[328092452,1716845063312,-1000.0,0.00038356,30]
[328092453,1716845063330,-493.84004854,0.000384,33]
[328092454,1716845063350,-162.69688002,0.000384,33]
[328092455,1716845063368,-300.0,0.00038651,120]
[328092456,1716845063388,-150.0,0.000387,28]
[328092457,1716845063410,-1000.0,0.000388,60]
[328092458,1716845063433,-897.49688171,0.000389,30]
[328092459,1716845063455,-293.12250014,0.00038987,60]
[328092460,1716845063481,-50000.0,0.00039,19]
[328092461,1716845063503,-150.0,0.00039,20]
[328092462,1716845063525,-1800.0,0.00039,60]
[328092463,1716845063546,-1031.02801323,0.00039,120]
[328092464,1716845063570,-1154.0,0.00039,60]
[328092465,1716845063593,-148571.44751052,0.00039,15]
[328092466,1716845063616,-100000.0,0.00039,60]
[328092467,1716845063637,-300.0,0.00039106,120]
[328092468,1716845063659,-35629.7406366,0.00039119,30]
[328092469,1716845063682,-150.0,0.000392,28]
[328092470,1716845063706,-177.76,0.00039243,120]
[328092471,1716845063728,-563.81469684,0.000394,30]
[328092472,1716845063751,-269.5,0.00039452,15]
[328092473,1716845063773,-5000.0,0.000395,30]
[328092474,1716845063795,-300.0,0.00039561,120]
[328092475,1716845063817,-150.0,0.000397,29]
[328092476,1716845063840,-606.45820308,0.00039798,120]
[328092477,1716845063863,-1000000.0,0.000398,30]
[328092478,1716845063885,-30734.71951112,0.0003985,30]
[328092479,1716845063907,-406.0,0.00039866,120]
[328092480,1716845063929,-100000.0,0.000399,60]
[328092481,1716845063952,-2195.07645488,0.000399,120]
[328092482,1716845063978,-654.76109694,0.0003998,30]
[328092483,1716845064004,-50000.0,0.0004,20]
[328092484,1716845064030,-50000.0,0.0004,30]
[328092485,1716845064056,-745.75296022,0.0004,20]
[328092486,1716845064078,-890.0,0.0004,15]
[328092487,1716845064101,-2000.0,0.0004,20]
[328092488,1716845064123,-150.0,0.0004,20]
[328092489,1716845064147,-1000.0,0.0004,20]
[328092490,1716845064170,-1700.0,0.0004,60]
[328092491,1716845064193,-2887.89417429,0.0004,30]
[328092492,1716845064218,-1470.06545068,0.0004,30]
[328092493,1716845064242,-2337.67058603,0.0004,120]
[328092494,1716845064265,-2004.95906309,0.0004,120]
[328092495,1716845064287,-2443.86874154,0.0004,30]
[328092496,1716845064309,-2443.09578572,0.0004,120]
[328092497,1716845064331,-4518.26654771,0.0004,120]
[328092498,1716845064354,-64137.10583634,0.0004,40]
[328092499,1716845069107,-935862.89416366,0.0004,40]
[328092500,1716845069130,-1000.0,0.0004,120]
[328092501,1716845069152,-709.69551692,0.0004,120]
[328092502,1716845069175,-1000.0,0.0004,30]
[328092503,1716845069197,-290.0,0.0004,30]
[328092504,1716845069220,-500.0,0.0004,120]
[328092505,1716845069242,-2110.0,0.0004,15]
[328092506,1716845069264,-200.0,0.0004,120]
[328092507,1716845069286,-150.57,0.0004,120]
[328092508,1716845069308,-1316.15119214,0.0004,15]
[328092509,1716845069331,-300.0,0.0004,30]
[328092510,1716845069353,-300.0,0.0004,30]
[328092511,1716845069375,-300.0,0.0004,30]
[328092512,1716845069397,-300.0,0.0004,30]
[328092513,1716845069419,-326.0,0.0004,30]
[328092514,1716845069442,-346.0,0.0004,30]
[328092515,1716845069465,-494.02464406,0.0004,120]
[328092516,1716845069486,-2000.0,0.0004,40]
[328092517,1716845069508,-2000.0,0.0004,40]
[328092518,1716845069531,-2000.0,0.0004,40]
[328092519,1716845069553,-2000.0,0.0004,40]
[328092520,1716845069575,-2000.0,0.0004,40]
[328092521,1716845069597,-2000.0,0.0004,40]
[328092522,1716845069620,-2000.0,0.0004,40]
[328092523,1716845069644,-2000.0,0.0004,40]
[328092524,1716845069666,-18662.11691005,0.0004,40]
[328092525,1716845069689,-294.35905871,0.0004,30]
[328092526,1716845069713,-904.5668429,0.0004,30]
[328092527,1716845069736,-185.24812118,0.0004,30]
[328092528,1716845069759,-631.26861266,0.0004,30]
[328092529,1716845069782,-261.0,0.0004,30]
[328092530,1716845069806,-400.0,0.0004,90]
[328092531,1716845069829,-627.16793959,0.0004,60]
[328092532,1716845069854,-1000.0,0.0004,120]
[328092533,1716845069877,-1000.0,0.0004,120]
[328092534,1716845069901,-13210.99013387,0.0004,120]
[328092535,1716845069926,-12829.99905443,0.0004,120]
[328092536,1716845069949,-393.21948692,0.0004001,30]
[328092537,1716845069978,-300.0,0.00040015,120]
[328092538,1716845070003,-216.12027739,0.000402,30]
[328092539,1716845070026,-349.44957669,0.000402,120]
[328092540,1716845070051,-289.13531351,0.000402,120]
[328092541,1716845070075,-150.0,0.000402,29]
[328092542,1716845070098,-10857.37695327,0.000402,120]
[328092543,1716845070121,-10857.37695324,0.000402,120]
[328092544,1716845070145,-10857.37695324,0.000402,120]
[328092545,1716845070168,-300.0,0.0004047,120]
[328092546,1716845070191,-500000.0,0.000405,45]
[328092547,1716845070215,-2110.0,0.000405,15]
[328092548,1716845070240,-254.782719,0.000407,30]
[328092549,1716845070263,-1619.6039,0.000409,30]
[328092550,1716845070286,-884.01,0.000409,60]
[328092551,1716845070311,-300000.0,0.000409,30]
[328092552,1716845070335,-271.95085098,0.00040914,120]
[328092553,1716845070358,-300.0,0.00040925,120]
[328092554,1716845070385,-50000.0,0.00041,21]
[328092555,1716845070412,-50000.0,0.00041,31]
[328092556,1716845070435,-400.0,0.00041,30]
[328092557,1716845070458,-2110.0,0.00041,15]
[328092558,1716845070482,-150.0,0.00041,30]
[328092559,1716845070505,-2000.0,0.00041,30]
[328092560,1716845070528,-580.73882318,0.00041,120]
[328092561,1716845070550,-500000.0,0.00041,45]
[328092562,1716845070573,-1164.17236966,0.00041,60]
[328092563,1716845070596,-813.53,0.00041,120]
[328092564,1716845070618,-100000.0,0.00041,60]
[328092565,1716845070643,-500.0,0.00041,120]
[328092566,1716845070665,-1924.40018659,0.00041028,120]
[328092567,1716845070688,-481.72116503,0.00041041,120]
[328092568,1716845070711,-510.0,0.00041095,120]
[328092569,1716845070735,-566.61,0.00041095,120]
[328092570,1716845070758,-566.61,0.00041095,120]
[328092571,1716845070781,-566.61,0.00041095,120]
[328092572,1716845070804,-566.61,0.00041095,120]
[328092573,1716845070827,-566.61,0.00041095,120]
[328092574,1716845070850,-566.61,0.00041095,120]
[328092575,1716845070872,-566.61,0.00041095,120]
[328092576,1716845070896,-566.61,0.00041095,120]
[328092577,1716845070919,-566.61,0.00041095,120]
[328092578,1716845070942,-566.61,0.00041095,120]
[328092579,1716845070968,-566.61,0.00041095,120]
[328092580,1716845070991,-566.61,0.00041095,120]
[328092581,1716845071017,-566.61,0.00041095,120]
[328092582,1716845071042,-566.61,0.00041095,120]
[328092583,1716845071066,-566.61,0.00041095,120]
[328092584,1716845071090,-566.61,0.00041095,120]
[328092585,1716845071114,-566.61,0.00041095,120]
[328092586,1716845071137,-566.61,0.00041095,120]
[328092587,1716845071160,-566.61,0.00041095,120]
[328092588,1716845071184,-566.61,0.00041095,120]
[328092589,1716845071206,-566.61,0.00041095,120]
[328092590,1716845071231,-566.61,0.00041095,120]
[328092591,1716845071254,-566.61,0.00041095,120]
[328092592,1716845071277,-566.62,0.00041095,120]
[328092593,1716845071459,-500.0,0.00041095,60]
[328092594,1716845071750,10857.37695324,0.000402,120]
[328092595,1716845075113,10857.37695324,0.000402,120]
[328092596,1716845076649,13196.99077039,0.000329,30]
[328092599,1716845241095,-205.13280041,0.00013768,2]
[328092600,1716845241115,-330.6386682,0.00013769,2]
[328092601,1716845241133,-1382.51190983,0.00013868,2]
[328092602,1716845241151,-155.0,0.00013872,2]
[328092603,1716845241171,-168.84607197,0.00013873,2]
[328092604,1716845241193,-151.08,0.00013973,2]
[328092605,1716845241212,-69.74747429,0.00017172,2]